bitfinex-derivatives/quotes_ETHF0:USTF0_20251216
["timestamp","ask_amount","ask_price","bid_price","bid_amount"]
[1765879691331,0.7381,2927.3,2927.2,2.78172835]
[1765879691532,1.68804,2927.4,2927.3,1.2412]
[1765879691945,1.68804,2927.4,2927.3,0.6206]
[1765879692143,1.68804,2927.3,2927.2,2.16112835]
[1765879692642,1.5172,2927.1,2927.0,5.98952835]
[1765879693347,0.7381,2927.1,2927.0,4.449]
[1765879693537,1.5172,2927.1,2927.0,4.449]
[1765879695452,1.5172,2927.1,2927.0,1.2412]
[1765879695648,1.5172,2927.1,2927.0,4.449]
[1765879696751,1.5172,2927.1,2927.0,1.2412]
[1765879697053,1.5172,2927.1,2927.0,4.449]
[1765879698446,1.5172,2927.1,2927.0,3.8284]
[1765879699240,1.5172,2927.1,2927.0,4.449]
[1765879700846,0.7381,2927.1,2927.0,4.449]
[1765879701747,0.7381,2927.1,2927.0,1.2412]
[1765879701953,0.7381,2927.1,2927.0,4.449]
[1765879702554,1.5172,2927.1,2927.0,4.449]
[1765879703151,1.68805,2927.1,2927.0,0.6206]
[1765879703350,1.5172,2926.8,2926.7,3.2078]
[1765879703951,1.5172,2926.8,2926.7,3.8284]
[1765879704553,1.68807,2926.8,2926.7,3.8284]
[1765879706254,1.68807,2926.8,2926.7,0.6206]
[1765879712053,1.5172,2926.7,2926.6,0.62438598]
[1765879712445,1.5172,2926.7,2926.6,0.00378598]
[1765879712651,1.5172,2926.7,2926.6,0.62478598]
[1765879714255,1.5172,2926.7,2926.6,0.00378598]
[1765879714457,1.5172,2926.7,2926.6,0.62538598]
[1765879715058,1.68807,2926.7,2926.6,0.62538598]
[1765879715449,1.68807,2926.7,2926.6,0.00378598]
[1765879715853,4.89587,2926.7,2926.6,0.00378598]
[1765879718970,3.37867,2926.7,2926.6,1.24698598]
[1765879719265,0.17087,2926.7,2926.6,1.24698598]
[1765879719768,0.89477,2926.7,2926.6,1.24698598]
[1765879719961,0.17087,2926.7,2926.6,1.24698598]
[1765879721362,0.89477,2926.7,2926.6,1.24698598]
[1765879722454,1.66207,2926.7,2926.6,0.00378598]
[1765879727062,1.66207,2926.7,2926.6,0.62538598]
[1765879727264,1.66207,2926.7,2926.6,0.00378598]
[1765879727965,1.66207,2926.7,2926.6,0.62538598]
[1765879728466,1.66207,2926.7,2926.6,0.00378598]
[1765879731562,1.66207,2926.7,2926.6,0.62538598]
[1765879731972,1.66207,2926.7,2926.6,0.00378598]
[1765879743577,2.07749,2926.5,2926.4,0.00512672]
[1765879743777,2.07749,2926.5,2926.4,0.62992672]
[1765879744577,2.07749,2926.5,2926.4,0.6323247]
[1765879746280,2.07749,2926.5,2926.4,0.0075247]
[1765879752988,2.07749,2926.5,2926.4,0.6323247]
[1765879753389,2.07749,2926.5,2926.4,0.0075247]
[1765879756596,2.07749,2926.5,2926.4,0.6323247]
[1765879756784,2.07749,2926.5,2926.4,1.2571247]
[1765879756987,2.07749,2926.5,2926.4,0.6323247]
[1765879757186,2.07749,2926.5,2926.4,0.0075247]
[1765879758998,2.07749,2926.5,2926.4,0.6323247]
[1765879759213,2.07749,2926.5,2926.4,0.0075247]
[1765879776513,2.07749,2926.5,2926.4,1.2572247]
[1765879776711,1.31589,2926.5,2926.4,4.4650247]
[1765879777012,2.10439,2926.5,2926.4,4.4650247]
[1765879780321,2.10439,2926.5,2926.4,6.0062023]
[1765879781517,2.10439,2926.5,2926.4,5.3813023]
[1765879782926,2.10439,2926.5,2926.4,6.0062023]
[1765879783425,2.10439,2926.5,2926.4,5.3813023]
[1765879786129,2.10439,2926.5,2926.4,0.0075247]
[1765879793433,2.10439,2926.5,2926.4,0.6324247]
[1765879793634,2.10439,2926.5,2926.4,1.2573247]
[1765879794035,2.10439,2926.5,2926.4,4.4651247]
[1765879794628,2.10439,2926.5,2926.4,1.2573247]
[1765879794837,2.10439,2926.5,2926.4,0.6324247]
[1765879795940,2.10439,2926.5,2926.4,1.2573247]
[1765879796139,1.34979,2926.5,2926.4,1.2573247]
[1765879796336,2.10439,2926.5,2926.4,1.2573247]
[1765879796531,2.10439,2926.5,2926.4,0.6324247]
[1765879799737,2.10439,2926.5,2926.4,0.0075247]
[1765879802531,2.10439,2926.5,2926.4,1.2577247]
[1765879802736,3.05412884,2927.0,2926.9,0.6253]
[1765879803039,1.4598,2926.9,2926.8,2.1664776]
[1765879803241,1.4598,2926.9,2926.8,1.5411776]
[1765879803847,1.4598,2926.9,2926.8,2.1664776]
[1765879804446,1.4598,2926.9,2926.8,1.5411776]
[1765879804649,0.64096,2927.0,2926.4,3.2153247]
[1765879804650,1.8911,2926.5,2926.4,3.2153247]
[1765879804844,1.8911,2926.5,2926.4,6.0071023]
[1765879805547,1.8911,2926.5,2926.4,4.7565023]
[1765879805741,1.8911,2926.5,2926.4,5.3818023]
[1765879805940,1.8911,2926.5,2926.4,4.7565023]
[1765879807549,1.8911,2926.5,2926.4,3.2153247]
[1765879807740,2.06199,2926.5,2926.4,3.2153247]
[1765879807945,2.06199,2926.5,2926.4,0.0075247]
[1765879828557,2.06199,2926.5,2926.4,0.6328247]
[1765879828756,2.06199,2926.5,2926.4,1.2581247]
[1765879829559,2.06199,2926.5,2926.4,0.6328247]
[1765879829858,2.06199,2926.5,2926.4,0.0075247]
[1765879832559,2.06199,2926.5,2926.4,0.6328247]
[1765879833663,2.06199,2926.5,2926.4,0.0075247]
[1765879835660,2.06199,2926.5,2926.4,0.6333247]
[1765879837562,1.32019,2926.5,2926.4,1.2591247]
[1765879837754,0.60219,2926.5,2926.4,1.2591247]
[1765879837954,1.36889,2926.5,2926.4,1.2591247]
[1765879838364,2.11819,2926.5,2926.4,1.2591247]
[1765879844063,0.4313,2926.5,2926.4,1.2591247]
[1765879844259,1.516,2926.8,2926.7,1.2516]
[1765879844458,1.516,2926.8,2926.7,2.79345324]
[1765879846071,1.516,2926.8,2926.7,1.2516]
[1765879847160,1.516,2926.8,2926.7,0.6258]
[1765879847768,1.516,2926.8,2926.7,1.2516]
[1765879847970,1.516,2926.8,2926.7,0.6258]
[1765879849369,1.516,2926.8,2926.7,1.2516]
[1765879850766,1.516,2926.8,2926.7,0.6258]
[1765879851466,1.516,2926.7,2926.6,2.16693197]
[1765879857777,1.516,2926.7,2926.6,2.79273197]
[1765879858872,0.7667,2926.7,2926.6,2.79273197]
[1765879859476,1.68686,2926.9,2926.8,1.2516]
[1765879859676,0.93756,2926.9,2926.8,1.2516]
[1765879859877,1.68686,2926.9,2926.8,1.2516]
[1765879864079,1.68686,2926.9,2926.8,0.6258]
[1765879864785,1.5343,2926.6,2926.5,1.2504]
[1765879865087,1.70516,2926.9,2926.8,0.6252]
[1765879865787,1.70516,2926.9,2926.8,1.2504]
[1765879868188,1.70516,2926.9,2926.8,0.6252]
[1765879868388,1.70516,2926.9,2926.8,1.2504]
[1765879869894,1.70516,2926.9,2926.8,0.6252]
[1765879879197,1.5343,2926.8,2926.7,2.16633197]
[1765879879399,1.5343,2926.8,2926.7,2.16620342]
[1765879879600,1.5343,2926.8,2926.7,2.79140342]
[1765879882399,1.5343,2926.8,2926.7,2.16620342]
[1765879882599,1.5343,2926.8,2926.7,2.79140342]
[1765879893613,0.7861,2926.8,2926.7,2.79140342]
[1765879893909,3.924,2927.3,2927.2,1.2486]
[1765879894108,1.63913,2927.4,2927.3,1.2486]
[1765879894519,1.63913,2927.4,2927.3,0.6243]
[1765879895019,1.63913,2927.4,2927.3,1.2486]
[1765879897721,1.63913,2927.4,2927.3,0.6243]
[1765879898915,1.63913,2927.4,2927.3,1.2486]
[1765879900523,0.88703,2927.4,2927.3,1.2486]
[1765879901320,1.63913,2927.4,2927.3,1.2486]
[1765879902424,0.88703,2927.4,2927.3,1.2486]
[1765879902622,0.17083,2927.4,2927.3,4.4564]
[1765879903420,1.63913,2927.4,2927.3,4.4564]
[1765879904423,1.63913,2927.4,2927.3,3.8321]
[1765879906520,1.63913,2927.4,2927.3,4.4564]
[1765879907924,1.151,2927.5,2927.4,1.2486]
[1765879908124,1.151,2927.5,2927.4,2.78960342]
[1765879908313,1.9031,2927.5,2927.4,2.78960342]
[1765879909027,1.9031,2927.5,2927.4,2.16530342]
[1765879912026,1.9031,2927.5,2927.4,2.78960342]
[1765879912422,1.151,2927.5,2927.4,2.78960342]
[1765879913828,1.151,2927.5,2927.4,2.78875115]
[1765879914027,0.4348,2927.5,2927.4,2.78875115]
[1765879914530,1.151,2927.5,2927.4,2.78875115]
[1765879914927,0.4348,2927.5,2927.4,2.78875115]
[1765879915630,1.151,2927.5,2927.4,2.78875115]
[1765879916030,1.9031,2927.5,2927.4,2.78875115]
[1765879918024,1.151,2927.5,2927.4,2.78875115]
[1765879918931,1.151,2927.5,2927.4,1.2486]
[1765879919732,1.9031,2927.5,2927.4,1.2486]
[1765879922338,1.151,2927.5,2927.4,1.2486]
[1765879930240,1.151,2927.5,2927.4,4.4564]
[1765879932935,1.8983,2927.5,2927.4,4.4564]
[1765879933139,1.151,2927.5,2927.4,4.4564]
[1765879933441,1.1629,2927.5,2927.4,4.4564]
[1765879933639,0.4348,2927.5,2927.4,4.4564]
[1765879933840,0.4348,2927.5,2927.4,5.99655115]
[1765879934842,1.1629,2927.5,2927.4,5.99655115]
[1765879935140,1.9102,2927.5,2927.4,3.2078]
[1765879935347,1.4754,2927.1,2927.0,4.4556]
[1765879936443,1.4754,2927.1,2927.0,5.99575115]
[1765879938246,2.08103,2927.5,2927.4,0.6239]
[1765879938444,2.08103,2927.5,2927.4,2.16405115]
[1765879939149,1.33373,2927.5,2927.4,2.78795115]
[1765879939343,1.33373,2927.5,2927.4,2.78793026]
[1765879939543,2.08103,2927.5,2927.4,5.99573026]
[1765879940349,0.17083,2927.5,2927.4,4.74793026]
[1765879941138,0.00316702,2927.7,2927.4,4.74793026]
[1765879942744,0.00316702,2927.7,2927.6,1.54013026]
[1765879942946,0.00316702,2927.7,2927.4,4.74793026]
[1765879945139,0.00316702,2927.7,2927.6,1.54013026]
[1765879945345,0.98314233,2928.3,2927.6,1.54013026]
[1765879945547,4.19094233,2928.4,2928.2,1.54013026]
[1765879945946,0.98314233,2928.4,2928.2,1.54013026]
[1765879946150,0.98314233,2928.5,2928.2,1.54013026]
[1765879946351,1.15391233,2928.6,2928.2,1.54013026]
[1765879946556,0.17464829,2928.5,2928.2,1.54013026]
[1765879948250,0.17464829,2928.5,2928.1,1.54013026]
[1765879948756,0.17079,2928.1,2928.0,0.00512672]
[1765879949364,9.37859,2928.1,2928.0,0.00512672]
[1765879949554,10.35672211,2928.1,2928.0,0.00512672]
[1765879949749,10.18593211,2928.1,2927.4,3.2078]
[1765879950055,0.17082,2927.7,2927.4,4.74793026]
[1765879950454,0.17082,2927.7,2927.4,3.2078]
[1765879951858,0.17082,2927.6,2927.4,3.2078]
[1765879953257,0.17083,2927.5,2927.4,3.2078]
[1765879953460,0.00512672,2927.8,2927.3,0.00512672]
[1765879953461,0.17083,2927.4,2927.3,0.00512672]
[1765879960568,0.17083,2927.4,2927.3,3.21292672]
[1765879961070,0.00512672,2927.8,2927.3,3.21292672]
[1765879961258,0.00512672,2927.8,2927.7,1.54013026]
[1765879963773,0.00512672,2927.8,2927.7,4.74793026]
[1765879964673,0.00512672,2927.8,2927.7,6.28806052]
[1765879964973,0.00512672,2927.8,2927.7,4.74793026]
[1765879972485,0.00512672,2927.8,2927.7,6.28806052]
[1765879973678,0.17078,2928.3,2927.7,6.28806052]
[1765879973981,0.17078,2928.3,2928.2,1.54013026]
[1765879975882,0.00387829,2928.5,2928.2,1.54013026]
[1765879977082,0.00387829,2928.5,2928.3,40.8]
[1765879977470,1.33046582,2929.7,2928.3,40.8]
[1765879977471,0.17072,2929.4,2928.4,3.2078]
[1765879977671,0.17072,2929.4,2929.3,1.54013026]
[1765879977874,1.84067918,2930.5,2929.3,1.54013026]
[1765879977875,3.2078,2930.3,2929.3,3.08026052]
[1765879978076,3.2078,2930.3,2930.2,1.54013026]
[1765879978289,0.17065,2930.5,2930.2,1.54013026]
[1765879978485,0.17305845,2930.5,2930.2,1.54311866]
[1765879978777,0.00240845,2930.5,2930.2,1.54311866]
[1765879979174,0.00240845,2930.5,2930.2,0.0029884]
[1765879979376,0.00240845,2930.5,2930.4,1.54013026]
[1765879980377,0.17066,2930.4,2930.2,0.0029884]
[1765879981679,0.17066,2930.4,2930.2,1.54043125]
[1765879982678,3.37846,2930.4,2930.2,0.0029884]
[1765879982877,0.17066,2930.3,2930.2,0.0029884]
[1765879983879,0.17069,2929.9,2929.0,1.53744285]
[1765879984087,3.2078,2929.5,2929.0,1.53744285]
[1765879984286,0.17069,2929.8,2929.0,4.74524285]
[1765879984883,0.17069,2929.8,2929.1,0.00832106]
[1765879987987,0.1707,2929.7,2929.1,0.00832106]
[1765879988498,0.1707,2929.6,2929.1,0.00832106]
[1765879989302,0.1707,2929.6,2929.3,1.53744285]
[1765879990394,0.17071,2929.5,2929.3,1.53744285]
[1765879991902,0.17072,2929.4,2929.1,0.00832106]
[1765879993704,0.17073,2929.3,2929.1,0.00832106]
[1765879994902,0.17073,2929.3,2929.1,3.21612106]
[1765879995200,0.17073,2929.2,2929.1,3.21612106]
[1765879995401,0.17073,2929.2,2929.1,0.00832106]
[1765879996899,0.17073,2929.2,2929.1,3.21612106]
[1765879998301,3.2078,2929.8,2929.1,3.21612106]
[1765879998500,0.1707,2929.6,2929.5,1.53744285]
[1765879999802,0.17072,2929.3,2929.2,1.53744285]
[1765880001597,0.17072,2929.3,2929.2,1.53864391]
[1765880004698,3.2078,2929.7,2929.2,1.53864391]
[1765880004899,3.2078,2929.7,2929.1,0.00832106]
[1765880005099,3.2078,2929.7,2929.6,1.53864391]
[1765880005509,3.3785,2929.7,2929.6,1.53864391]
[1765880006204,0.1707,2929.7,2929.6,1.53864391]
[1765880006700,3.0494732,2930.8,2929.6,1.53864391]
[1765880006701,3.37846,2930.3,2929.6,4.74644391]
[1765880006900,3.37846,2930.3,2930.2,1.53864391]
[1765880007105,3.37843,2930.9,2930.2,6.28508782]
[1765880007315,3.37843,2930.9,2930.4,3.07728782]
[1765880008613,0.17064,2930.8,2930.4,3.07728782]
[1765880009109,0.17065,2930.6,2930.4,1.53864391]
[1765880009698,0.17065,2930.6,2930.4,3.07728782]
[1765880013306,3.37841,2931.2,2930.4,3.07728782]
[1765880014010,3.37841,2931.2,2931.1,1.53864391]
[1765880014212,0.17061,2931.2,2931.1,1.53864391]
[1765880014799,0.17313543,2931.2,2931.1,1.53864391]
[1765880016102,0.00252543,2931.2,2931.1,3.07728782]
[1765880016299,3.2078,2931.8,2931.1,3.2078]
[1765880016514,1.789,2931.9,2931.2,1.53864391]
[1765880016515,0.1706,2931.4,2931.2,1.53864391]
[1765880017212,0.17478401,2931.4,2931.2,1.54237321]
[1765880017406,0.00418401,2931.4,2931.2,1.54237321]
[1765880019615,3.21198401,2931.4,2931.2,0.0037293]
[1765880020108,3.21198401,2931.4,2930.0,4.74644391]
[1765880020109,1.53864391,2931.3,2930.0,4.74644391]
[1765880020309,0.17067,2930.2,2930.0,4.74644391]
[1765880021111,0.17067,2930.2,2930.0,4.75071489]
[1765880022615,0.17068,2930.1,2930.0,4.75071489]
[1765880023407,0.17068,2930.1,2930.0,3.21207098]
[1765880026713,0.17068,2930.1,2930.0,0.00427098]
[1765880027616,3.37848,2930.1,2930.0,0.00427098]
[1765880027818,0.17072,2929.4,2929.1,3.2078]
[1765880028004,0.17073,2929.2,2929.1,3.2078]
[1765880028814,0.1744773,2929.2,2929.1,3.21044066]
[1765880032418,0.1744773,2929.2,2929.1,0.00264066]
[1765880045629,0.0037473,2929.2,2929.1,0.00264066]
[1765880047133,0.0037473,2929.2,2929.1,6.00264066]
[1765880047335,0.0037473,2929.2,2929.1,0.00264066]
[1765880051426,0.1744773,2929.2,2929.1,0.00264066]
[1765880053844,0.0037473,2929.2,2929.1,0.00264066]
[1765880070647,3.37849,2929.9,2929.1,0.00264066]
[1765880070847,3.37849,2929.9,2929.3,3.2078]
[1765880071448,0.17069,2929.8,2929.3,3.2078]
[1765880071650,0.1732894,2929.8,2929.3,44.0078]
[1765880072554,0.1732894,2929.8,2929.3,3.2078]
[1765880073051,0.1707,2929.7,2929.3,3.2078]
[1765880073256,0.17071,2929.6,2929.3,3.2078]
[1765880076153,0.17071,2929.5,2929.1,0.00264066]
[1765880078453,3.2078,2929.6,2929.1,0.00264066]
[1765880078454,0.17072,2929.3,2929.1,0.00264066]
[1765880081367,0.17073,2929.2,2929.1,0.00264066]
[1765880083559,0.96739828,2929.5,2929.1,0.00264066]
[1765880083760,3.2078,2929.6,2929.1,0.00264066]
[1765880084062,0.17071,2929.5,2929.1,0.00264066]
[1765880085162,0.17072,2929.4,2929.1,0.00264066]
[1765880085456,0.17073,2929.3,2929.1,0.00264066]
[1765880085661,0.17073,2929.2,2929.1,0.00264066]
[1765880104881,3.37853,2929.2,2929.1,0.00264066]
[1765880107378,3.37853,2929.2,2929.1,1.54143843]
[1765880107884,0.17073,2929.2,2929.1,1.54143843]
[1765880111780,0.17073,2929.2,2929.1,0.00264066]
[1765880122696,0.17073,2929.2,2929.1,3.21044066]
[1765880123385,0.17073,2929.2,2929.1,4.74891254]
[1765880127596,3.3810994,2929.8,2929.1,4.74891254]
[1765880127794,3.3810994,2929.8,2929.6,1.53847188]
[1765880128392,0.1707,2929.7,2929.6,1.53847188]
[1765880129698,0.1707,2929.7,2929.1,3.21044066]
[1765880129892,0.1707,2929.7,2929.6,1.53847188]
[1765880134900,4.74887128,2929.8,2929.1,3.21044066]
[1765880135101,0.17072,2929.3,2929.1,3.21044066]
[1765880136202,0.17073,2929.2,2929.1,3.21044066]
[1765880158026,0.20144738,2929.2,2929.1,3.21044066]
[1765880158725,0.20144738,2929.2,2929.1,0.00264066]
[1765880158928,0.20144738,2929.2,2929.1,3.21044066]
[1765880160525,0.20144738,2929.2,2929.1,4.74891254]
[1765880174331,0.03071738,2929.2,2929.1,4.74891254]
[1765880175331,0.03071738,2929.2,2929.1,3.21044066]
[1765880175636,0.0025994,2929.8,2929.1,3.21044066]
[1765880175637,0.0025994,2929.8,2929.1,14.56738442]
[1765880175839,0.0025994,2929.8,2929.7,4.74627188]
[1765880176032,3.21288654,2930.4,2929.7,20.59627188]
[1765880176538,3.21288654,2930.4,2930.3,1.53847188]
[1765880176926,3.21731004,2930.4,2930.3,1.53847188]
[1765880177126,0.00951004,2930.4,2930.3,1.53847188]
[1765880181033,0.00951004,2930.4,2930.3,3.07694376]
[1765880181735,0.00951004,2930.4,2930.3,43.87694376]
[1765880181940,0.17061,2931.2,2930.3,3.07694376]
[1765880182235,0.17061,2931.2,2931.1,1.53847188]
[1765880182537,0.17061,2931.2,2930.9,4.74627188]
[1765880182933,0.17501621,2931.2,2930.9,3.2078]
[1765880183139,0.17501621,2931.2,2930.9,4.74627188]
[1765880183334,0.17501621,2931.2,2930.9,4.74442665]
[1765880185629,0.17501621,2931.2,2930.9,3.2078]
[1765880192348,0.17501621,2931.2,2931.0,1.53666145]
[1765880204856,0.17501621,2931.2,2931.1,3.2078]
[1765880205460,0.00440621,2931.2,2931.1,3.2078]
[1765880205854,0.00511745,2931.3,2931.1,3.2078]
[1765880206250,3.2078,2931.8,2931.1,3.2078]
[1765880206251,3.2078,2931.8,2931.2,1.53666145]
[1765880206458,3.37835,2932.2,2931.6,1.53666145]
[1765880206654,3.37835,2932.2,2932.0,1.53666145]
[1765880206952,3.38088471,2932.2,2932.0,1.5391879]
[1765880207157,3.38088471,2932.2,2932.0,0.00252645]
[1765880207354,3.38088471,2932.2,2932.0,1.5391879]
[1765880208463,0.00253471,2932.2,2932.0,1.5391879]
[1765880210656,0.00253471,2932.2,2932.0,0.00252645]
[1765880210861,0.17309471,2932.2,2932.0,0.00252645]
[1765880211857,0.17309471,2932.2,2932.0,1.5391879]
[1765880212259,0.00253471,2932.2,2932.0,1.5391879]
[1765880213662,0.17056,2932.1,2932.0,0.00252645]
[1765880220367,0.17058,2931.7,2931.5,3.2078]
[1765880221575,0.17058,2931.7,2931.5,3.21064963]
[1765880224170,3.38088471,2932.2,2931.5,3.21064963]
[1765880224370,0.17308471,2932.2,2932.1,1.53666145]
[1765880227669,0.17056,2932.1,2931.8,4.74446145]
[1765880228780,0.17056,2932.1,2931.8,3.2078]
[1765880229371,0.17057,2932.0,2931.8,3.2078]
[1765880229680,0.17057,2932.0,2931.7,1.53666145]
[1765880231375,0.17057,2932.0,2931.8,3.2078]
[1765880232475,0.17057,2931.9,2931.8,3.2078]
[1765880232673,0.17058,2931.8,2931.5,3.21064963]
[1765880234676,0.17059,2931.6,2931.5,3.21064963]
[1765880237784,0.17059,2931.6,2931.5,0.00284963]
[1765880245486,0.17059,2931.6,2931.5,1.53888885]
[1765880248888,0.17059,2931.6,2931.5,0.00284963]
[1765880249392,0.17059,2931.6,2931.0,1.53603922]
[1765880249393,0.17062,2931.2,2931.0,1.53603922]
[1765880249592,1.53603922,2931.3,2930.9,1.06474873]
[1765880249794,0.17062,2931.0,2930.9,1.06474873]
[1765880250395,0.17062,2931.0,2930.9,1.06852036]
[1765880253300,9.37842,2931.0,2930.9,0.19812574]
[1765880253499,0.17063,2930.9,2930.8,3.19e-06]
[1765880253704,11.96881797,2930.9,2929.8,3.2078]
[1765880253905,0.17069,2929.8,2929.5,4.74564072]
[1765880254199,0.1707,2929.6,2929.5,4.74564072]
[1765880254404,0.1707,2929.6,2929.5,3.2078]
[1765880254704,0.00437174,2929.6,2929.5,0.00298085]
[1765880255503,0.17507174,2929.6,2929.5,0.00298085]
[1765880264124,0.17507174,2929.6,2928.5,3.2078]
[1765880264125,0.17076,2928.6,2928.5,3.2078]
[1765880265021,0.17076,2928.6,2928.5,3.21193938]
[1765880266121,0.1708,2928.0,2927.9,3.2078]
[1765880267317,0.1708,2928.0,2927.9,3.21213537]
[1765880268816,0.00511745,2928.2,2927.9,3.21213537]
[1765880269523,3.2078,2928.8,2927.9,11.94213537]
[1765880269725,3.2078,2928.8,2928.4,2.30782199]
[1765880269925,3.37853,2929.2,2928.6,3.2078]
[1765880270122,0.17075,2928.9,2928.6,3.2078]
[1765880274531,0.00511745,2929.0,2928.6,3.2078]
[1765880274735,3.2078,2928.9,2928.2,3.2078]
[1765880274921,0.17078,2928.3,2928.2,3.2078]
[1765880277932,1.66328,2928.3,2928.2,3.833]
[1765880278935,1.66328,2928.3,2928.2,3.2078]
[1765880279230,1.66328,2928.3,2928.2,3.8334]
[1765880279432,1.66328,2928.3,2928.2,4.459]
[1765880279626,0.88838,2928.3,2928.2,4.459]
[1765880280736,0.17078,2928.3,2928.2,4.459]
[1765880281435,0.90038,2928.3,2928.2,4.459]
[1765880281630,1.67528,2928.3,2928.2,4.459]
[1765880281829,0.17078,2928.3,2928.2,4.459]
[1765880282138,1.13924704,2928.3,2928.2,4.459]
[1765880284344,0.96846704,2928.3,2928.2,4.459]
[1765880285946,0.47501745,2929.0,2928.2,9.2078]
[1765880286240,0.47501745,2929.0,2928.6,5.51562199]
[1765880286836,0.47501745,2929.0,2928.9,3.2078]
[1765880287237,2.10225745,2929.0,2928.9,3.2078]
[1765880287444,1.36095745,2929.0,2928.9,3.2078]
[1765880288734,0.64575745,2929.0,2928.9,3.2078]
[1765880290444,0.00511745,2929.0,2928.9,3.2078]
[1765880291144,0.45101745,2929.0,2928.9,3.2078]
[1765880292949,0.00511745,2929.0,2928.9,3.2078]
[1765880293148,0.00437174,2929.6,2928.9,9.2078]
[1765880293344,0.00437174,2929.6,2929.3,3.2078]
[1765880294947,0.4459,2929.5,2929.3,3.2078]
[1765880300754,1.9264,2930.0,2929.3,3.2078]
[1765880300954,1.9264,2930.0,2929.7,3.2078]
[1765880301448,0.4699,2930.0,2929.8,2.30782199]
[1765880301648,0.47382525,2930.0,2929.8,2.30782199]
[1765880302046,0.00392525,2930.0,2929.8,2.30782199]
[1765880302260,0.17064,2930.8,2929.8,26.7413032]
[1765880302448,3.3784,2931.4,2930.7,3.2078]
[1765880302650,3.3784,2931.4,2930.7,44.0078]
[1765880302958,4.8349,2931.4,2930.7,44.0078]
[1765880303164,0.17061,2931.3,2930.7,44.01125121]
[1765880303454,1.62711,2931.3,2930.7,44.01125121]
[1765880306660,0.88581,2931.3,2930.7,44.01125121]
[1765880306961,1.62711,2931.3,2930.7,44.01125121]
[1765880308254,1.62711,2931.3,2931.1,3.2078]
[1765880308457,0.17061,2931.3,2931.1,3.2078]
[1765880309366,1.4565,2931.2,2931.1,3.2078]
[1765880309858,1.62711,2931.3,2931.1,3.2078]
[1765880310055,0.17061,2931.3,2931.1,3.2078]
[1765880311060,0.00242746,2931.4,2931.1,3.2078]
[1765880315360,0.7158,2931.2,2931.1,3.2078]
[1765880315554,1.43722746,2931.4,2931.1,3.2078]
[1765880315754,0.00242746,2931.4,2931.1,3.2078]
[1765880315960,0.00242746,2931.4,2931.1,5.81964227]
[1765880319059,0.00242746,2931.4,2931.2,15.872]
[1765880321369,0.00242746,2931.4,2931.2,15.871]
[1765880322271,0.71822746,2931.4,2931.2,15.871]
[1765880322671,1.43722746,2931.4,2931.1,3.2078]
[1765880323167,1.4348,2931.2,2931.1,3.2078]
[1765880323465,1.60541,2931.2,2931.1,3.2078]
[1765880323869,1.4348,2930.9,2930.8,3.2078]
[1765880324265,1.60543,2930.9,2930.8,3.2078]
[1765880327668,0.441,2931.0,2930.8,3.2078]
[1765880327869,0.17302746,2931.4,2930.8,3.2078]
[1765880328069,0.88882746,2931.4,2931.2,3.2078]
[1765880329175,1.84950645,2931.4,2931.2,3.2078]
[1765880329377,2.56850645,2931.4,2931.2,3.2078]
[1765880329677,1.84950645,2931.4,2931.2,3.2078]
[1765880329980,0.00242746,2931.4,2931.3,15.87]
[1765880330174,0.00242746,2931.4,2931.3,16.3]
[1765880330667,0.00242746,2931.4,2931.3,17.81]
[1765880330867,0.00242746,2931.4,2931.3,15.9]
[1765880331876,0.4459,2932.5,2931.4,0.1706]
[1765880332071,0.4459,2932.5,2932.4,3.2078]
[1765880332281,0.1705,2933.1,2932.4,3.2078]
[1765880332282,0.96365051,2932.7,2932.4,3.2078]
[1765880332474,1.8758,2932.5,2932.4,3.2078]
[1765880332677,2.83898832,2932.5,2932.4,3.2078]
[1765880332981,2.83898832,2932.5,2932.1,3.2078]
[1765880332982,1.4348,2932.2,2932.1,3.2078]
[1765880336782,2.56746391,2932.2,2932.1,3.2078]
[1765880336983,1.4348,2931.9,2931.8,3.2078]
[1765880340088,1.4348,2931.8,2931.7,0.00511745]
[1765880340479,7.4348,2931.8,2931.7,1.745e-05]
[1765880340679,8.39691391,2931.8,2931.7,1.745e-05]
[1765880341684,2.56749391,2931.8,2931.7,1.745e-05]
[1765880341873,1.4348,2931.1,2931.0,3.2078]
[1765880345387,1.60542,2931.1,2931.0,3.2078]
[1765880347794,0.88642,2931.1,2931.0,3.2078]
[1765880348387,1.65192,2931.1,2931.0,3.2078]
[1765880352784,0.88642,2931.1,2931.0,3.2078]
[1765880352987,1.65192,2931.1,2931.0,3.2078]
[1765880353692,0.17062,2931.1,2931.0,3.2078]
[1765880356700,0.17062,2931.1,2930.8,3.21291745]
[1765880357500,0.456,2931.0,2930.8,3.21291745]
[1765880357999,0.17062,2931.1,2930.8,3.21291745]
[1765880361005,0.456,2931.0,2930.8,3.21291745]
[1765880361195,1.2267,2931.0,2930.8,3.21291745]
[1765880361398,0.456,2931.0,2930.8,3.21291745]
[1765880365205,1.2117,2931.5,2930.8,3.21291745]
[1765880365404,0.441,2931.5,2931.4,2.30362289]
[1765880365709,0.17059,2931.6,2931.4,2.30362289]
[1765880367401,0.456,2931.5,2931.4,2.30362289]
[1765880369509,0.456,2931.5,2931.4,1.53600694]
[1765880370008,0.456,2931.5,2931.4,4.74380694]
[1765880374916,1.9527,2931.5,2931.4,4.74380694]
[1765880375508,1.9527,2931.5,2931.4,3.2078]
[1765880376610,2.12329,2931.5,2931.4,3.2078]
[1765880376810,0.89661,2931.2,2931.1,3.2078]
[1765880377109,1.4785,2931.1,2931.0,1.53600694]
[1765880377710,1.4785,2931.1,2930.8,3.21291745]
[1765880378006,1.64913,2930.9,2930.8,3.21291745]
[1765880378819,10.85693,2930.9,2930.7,0.00345121]
[1765880379116,1.927,2930.5,2930.4,3.2078]
[1765880379707,1.4785,2930.1,2930.0,3.2078]
[1765880380002,1.48119168,2930.1,2930.0,3.21108272]
[1765880380204,1.65187168,2930.1,2930.0,3.21108272]
[1765880380508,1.4785,2929.4,2929.3,3.9774]
[1765880380808,1.4785,2929.4,2929.3,1.5264]
[1765880381407,1.4785,2929.4,2929.3,0.77236609]